[Event "Titled Tuesday Blitz February 22 Early 2022"]
[White "Toncheva, Nadya"]
[Black "Orozbaev, Eldiar"]
[WhiteFideId "2924056"]
[BlackFideId "13802240"]
[WhiteElo "1920"]
[BlackElo "2050"]
[Result "0-1"]
[Round "01"]
[TimeControl "180+1"]
[Date "2022.02.22"]
[WhiteClock "0:00:11"]
[BlackClock "0:01:32"]

1. e4 {[%clk 0:03:00]}  e6 {[%clk 0:02:59]} 2. d4 {[%clk 0:03:00]}  d5 {[%clk 0:02:59]} 3. Nd2 {[%clk 0:03:01]}  c5 {[%clk 0:02:57]} 4. exd5 {[%clk 0:03:01]}  exd5 {[%clk 0:02:57]} 5. Bb5+ {[%clk 0:03:01]}  Nc6 {[%clk 0:02:57]} 6. Ngf3 {[%clk 0:03:00]}  Bd6 {[%clk 0:02:57]} 7. O-O {[%clk 0:02:58]}  Ne7 {[%clk 0:02:57]} 8. dxc5 {[%clk 0:02:57]}  Bxc5 {[%clk 0:02:58]} 9. Nb3 {[%clk 0:02:58]}  Bd6 {[%clk 0:02:58]} 10. Nbd4 {[%clk 0:02:56]}  Bg4 {[%clk 0:02:56]} 11. Be3 {[%clk 0:02:52]}  O-O {[%clk 0:02:56]} 12. h3 {[%clk 0:02:52]}  Bh5 {[%clk 0:02:56]} 13. Qd2 {[%clk 0:02:48]}  Qc7 {[%clk 0:02:55]} 14. Rfe1 {[%clk 0:02:47]}  a6 {[%clk 0:02:51]} 15. Bd3 {[%clk 0:02:44]}  Ne5 {[%clk 0:02:45]} 16. Nxe5 {[%clk 0:02:41]}  Bxe5 {[%clk 0:02:45]} 17. Rac1 {[%clk 0:02:38]}  Nc6 {[%clk 0:02:44]} 18. Nxc6 {[%clk 0:02:32]}  bxc6 {[%clk 0:02:45]} 19. c4 {[%clk 0:02:32]}  d4 {[%clk 0:02:44]} 20. Bg5 {[%clk 0:02:21]}  Rfe8 {[%clk 0:02:43]} 21. Qc2 {[%clk 0:01:43]}  Bg6 {[%clk 0:02:37]} 22. Bxg6 {[%clk 0:01:38]}  hxg6 {[%clk 0:02:38]} 23. Re2 {[%clk 0:01:38]}  Bh2+ {[%clk 0:02:29]} 24. Kh1 {[%clk 0:01:35]}  Bf4 {[%clk 0:02:30]} 25. Bxf4 {[%clk 0:01:30]}  Qxf4 {[%clk 0:02:31]} 26. Rce1 {[%clk 0:01:31]}  Rxe2 {[%clk 0:02:29]} 27. Rxe2 {[%clk 0:01:31]}  Rd8 {[%clk 0:02:28]} 28. Qd3 {[%clk 0:01:30]}  c5 {[%clk 0:02:20]} 29. b3 {[%clk 0:01:27]}  Kf8 {[%clk 0:02:19]} 30. g3 {[%clk 0:01:23]}  Qc1+ {[%clk 0:02:17]} 31. Kg2 {[%clk 0:01:22]}  Qg5 {[%clk 0:02:16]} 32. h4 {[%clk 0:01:21]}  Qf6 {[%clk 0:02:07]} 33. Re1 {[%clk 0:01:15]}  Qc6+ {[%clk 0:02:06]} 34. Kh2 {[%clk 0:01:12]}  Re8 {[%clk 0:02:06]} 35. Rxe8+ {[%clk 0:01:05]}  Qxe8 {[%clk 0:02:07]} 36. f3 {[%clk 0:01:06]}  Qe1 {[%clk 0:02:05]} 37. Kg2 {[%clk 0:01:01]}  Qc3 {[%clk 0:02:03]} 38. Qe4 {[%clk 0:00:51]}  Qd2+ {[%clk 0:02:03]} 39. Kf1 {[%clk 0:00:40]}  Kg8 {[%clk 0:01:48]} 40. Qe2 {[%clk 0:00:31]}  Qc1+ {[%clk 0:01:37]} 41. Kf2 {[%clk 0:00:25]}  Qh1 {[%clk 0:01:37]} 42. Qe8+ {[%clk 0:00:18]}  Kh7 {[%clk 0:01:36]} 43. Qxf7 {[%clk 0:00:19]}  Qh2+ {[%clk 0:01:37]} 44. Kf1 {[%clk 0:00:18]}  Qxg3 {[%clk 0:01:37]} 45. Qd5 {[%clk 0:00:15]}  Qh3+ {[%clk 0:01:34]} 46. Ke2 {[%clk 0:00:14]}  Qg2+ {[%clk 0:01:33]} 47. Kd3 {[%clk 0:00:14]}  Qf1+ {[%clk 0:01:33]} 48. Ke4 {[%clk 0:00:14]}  Qe1+ {[%clk 0:01:31]} 49. Kf4 {[%clk 0:00:13]}  Qxh4+ {[%clk 0:01:31]} 50. Ke5 {[%clk 0:00:11]}  Qg5+ {[%clk 0:01:32]} 51. Ke4 {[%clk 0:00:11]}  Qe3# {[%clk 0:01:32]} 0-1


[Site "https://www.chess.com"]

[Event "Titled Tuesday Blitz February 22 Early 2022"]
[White "Tsatsalashvili, Keti"]
[Black "Weetik, Vjacheslav"]
[WhiteFideId "13603434"]
[BlackFideId "4153472"]
[WhiteElo "2246"]
[BlackElo "2469"]
[Result "0-1"]
[Round "01"]
[TimeControl "180+1"]
[Date "2022.02.22"]
[WhiteClock "0:00:38"]
[BlackClock "0:00:16"]

1. d4 {[%clk 0:03:00]}  d5 {[%clk 0:02:55]} 2. Nf3 {[%clk 0:02:57]}  e6 {[%clk 0:02:49]} 3. c4 {[%clk 0:02:56]}  c6 {[%clk 0:02:50]} 4. e3 {[%clk 0:02:55]}  Bd6 {[%clk 0:02:50]} 5. Nbd2 {[%clk 0:02:56]}  f5 {[%clk 0:02:50]} 6. Be2 {[%clk 0:02:47]}  Nf6 {[%clk 0:02:49]} 7. O-O {[%clk 0:02:47]}  Nbd7 {[%clk 0:02:49]} 8. b3 {[%clk 0:02:47]}  O-O {[%clk 0:02:48]} 9. a4 {[%clk 0:02:46]}  Qe7 {[%clk 0:02:47]} 10. Bb2 {[%clk 0:02:42]}  a5 {[%clk 0:02:36]} 11. cxd5 {[%clk 0:02:31]}  exd5 {[%clk 0:02:35]} 12. Qc2 {[%clk 0:02:28]}  Ne4 {[%clk 0:02:34]} 13. g3 {[%clk 0:02:18]}  Rf6 {[%clk 0:02:30]} 14. Ne1 {[%clk 0:02:18]}  Rh6 {[%clk 0:02:28]} 15. Ndf3 {[%clk 0:02:15]}  g5 {[%clk 0:02:18]} 16. Nd3 {[%clk 0:02:14]}  g4 {[%clk 0:02:05]} 17. Nfe5 {[%clk 0:02:14]}  Nxe5 {[%clk 0:01:58]} 18. dxe5 {[%clk 0:01:54]}  Bc7 {[%clk 0:01:54]} 19. f3 {[%clk 0:01:51]}  gxf3 {[%clk 0:01:52]} 20. Bxf3 {[%clk 0:01:51]}  Be6 {[%clk 0:01:47]} 21. Rae1 {[%clk 0:01:47]}  Bb6 {[%clk 0:01:36]} 22. Nf4 {[%clk 0:01:41]}  Kh8 {[%clk 0:01:27]} 23. Ba1 {[%clk 0:01:37]}  Rg8 {[%clk 0:01:27]} 24. Kg2 {[%clk 0:01:36]}  Nxg3 {[%clk 0:00:53]} 25. Nxe6 {[%clk 0:00:53]}  Rxh2+ {[%clk 0:00:39]} 26. Kxh2 {[%clk 0:00:47]}  Qh4+ {[%clk 0:00:38]} 27. Kg2 {[%clk 0:00:44]}  Ne4+ {[%clk 0:00:32]} 28. Ng5 {[%clk 0:00:42]}  Rxg5+ {[%clk 0:00:31]} 29. Bg4 {[%clk 0:00:42]}  Qxg4+ {[%clk 0:00:20]} 30. Kh1 {[%clk 0:00:39]}  Rh5+ {[%clk 0:00:16]} 31. Qh2 {[%clk 0:00:40]}  Ng3+ {[%clk 0:00:15]} 32. Kg2 {[%clk 0:00:39]}  Nxf1+ {[%clk 0:00:15]} 33. Kxf1 {[%clk 0:00:39]}  Rxh2 {[%clk 0:00:15]} 34. e6+ {[%clk 0:00:39]}  Kg8 {[%clk 0:00:15]} 35. e7 {[%clk 0:00:38]}  Qf3+ {[%clk 0:00:15]} 36. Kg1 {[%clk 0:00:38]}  Qg2# {[%clk 0:00:16]} 0-1


[Site "https://www.chess.com"]

[Event "Titled Tuesday Blitz February 22 Early 2022"]
[White "Urbina Perez, Juan Antonio"]
[Black "Lazavik, Denis"]
[WhiteFideId "2217368"]
[BlackFideId "13515110"]
[WhiteElo "2192"]
[BlackElo "2436"]
[Result "0-1"]
[Round "01"]
[TimeControl "180+1"]
[Date "2022.02.22"]
[WhiteClock "0:00:01"]
[BlackClock "0:00:58"]

1. e4 {[%clk 0:03:00]}  c5 {[%clk 0:02:58]} 2. Nf3 {[%clk 0:02:59]}  e6 {[%clk 0:02:59]} 3. c3 {[%clk 0:02:57]}  Nf6 {[%clk 0:02:55]} 4. e5 {[%clk 0:02:57]}  Nd5 {[%clk 0:02:55]} 5. g3 {[%clk 0:02:58]}  d6 {[%clk 0:02:53]} 6. exd6 {[%clk 0:02:58]}  Bxd6 {[%clk 0:02:52]} 7. Bg2 {[%clk 0:02:59]}  O-O {[%clk 0:02:52]} 8. d4 {[%clk 0:02:59]}  cxd4 {[%clk 0:02:48]} 9. Nxd4 {[%clk 0:03:00]}  Nc6 {[%clk 0:02:46]} 10. Nxc6 {[%clk 0:02:59]}  bxc6 {[%clk 0:02:46]} 11. O-O {[%clk 0:02:57]}  Qc7 {[%clk 0:02:43]} 12. c4 {[%clk 0:02:49]}  Nf6 {[%clk 0:02:39]} 13. Nc3 {[%clk 0:02:48]}  Rd8 {[%clk 0:02:36]} 14. Qe2 {[%clk 0:02:47]}  h6 {[%clk 0:02:34]} 15. Nb5 {[%clk 0:02:39]}  cxb5 {[%clk 0:02:06]} 16. Bxa8 {[%clk 0:02:37]}  bxc4 {[%clk 0:02:06]} 17. Be3 {[%clk 0:02:30]}  Be5 {[%clk 0:01:52]} 18. Rac1 {[%clk 0:02:00]}  Ba6 {[%clk 0:01:50]} 19. Bg2 {[%clk 0:01:58]}  Qa5 {[%clk 0:01:46]} 20. Rfd1 {[%clk 0:01:54]}  Rb8 {[%clk 0:01:44]} 21. Bf1 {[%clk 0:01:38]}  Rxb2 {[%clk 0:01:41]} 22. Bd2 {[%clk 0:00:56]}  Qc5 {[%clk 0:01:21]} 23. Be3 {[%clk 0:00:49]}  Qc6 {[%clk 0:01:03]} 24. Qe1 {[%clk 0:00:13]}  Bb7 {[%clk 0:00:59]} 25. Rd8+ {[%clk 0:00:01]}  Kh7 {[%clk 0:00:58]} 0-1


[Site "https://www.chess.com"]

[Event "Titled Tuesday Blitz February 22 Early 2022"]
[White "Vidit, Santosh Gujrathi"]
[Black "Marson, Juan Miguel"]
[WhiteFideId "5029465"]
[BlackFideId "106585"]
[WhiteElo "2654"]
[BlackElo "2053"]
[Result "1-0"]
[Round "01"]
[TimeControl "180+1"]
[Date "2022.02.22"]
[WhiteClock "0:00:38"]
[BlackClock "0:00:02"]

1. e4 {[%clk 0:03:00]}  e5 {[%clk 0:02:56]} 2. Nf3 {[%clk 0:03:01]}  Nc6 {[%clk 0:02:56]} 3. Bc4 {[%clk 0:03:01]}  Nf6 {[%clk 0:02:56]} 4. d3 {[%clk 0:03:01]}  Be7 {[%clk 0:02:56]} 5. O-O {[%clk 0:03:01]}  O-O {[%clk 0:02:57]} 6. a4 {[%clk 0:03:00]}  d6 {[%clk 0:02:56]} 7. c3 {[%clk 0:02:59]}  Kh8 {[%clk 0:02:55]} 8. Re1 {[%clk 0:02:50]}  Ng8 {[%clk 0:02:51]} 9. d4 {[%clk 0:02:49]}  f5 {[%clk 0:02:51]} 10. dxe5 {[%clk 0:02:29]}  fxe4 {[%clk 0:02:42]} 11. Rxe4 {[%clk 0:02:30]}  Rxf3 {[%clk 0:02:39]} 12. gxf3 {[%clk 0:01:58]}  Nxe5 {[%clk 0:02:37]} 13. Bxg8 {[%clk 0:01:57]}  Kxg8 {[%clk 0:02:26]} 14. Bf4 {[%clk 0:01:52]}  Ng6 {[%clk 0:01:58]} 15. Qd5+ {[%clk 0:01:50]}  Kh8 {[%clk 0:01:58]} 16. Bg3 {[%clk 0:01:45]}  c6 {[%clk 0:01:25]} 17. Qf7 {[%clk 0:01:41]}  d5 {[%clk 0:01:21]} 18. Re2 {[%clk 0:01:32]}  Bh3 {[%clk 0:01:01]} 19. Nd2 {[%clk 0:01:29]}  Qf8 {[%clk 0:00:39]} 20. Qxf8+ {[%clk 0:01:28]}  Bxf8 {[%clk 0:00:33]} 21. Rae1 {[%clk 0:01:26]}  Bd7 {[%clk 0:00:32]} 22. f4 {[%clk 0:01:04]}  Kg8 {[%clk 0:00:28]} 23. f5 {[%clk 0:01:03]}  Nh8 {[%clk 0:00:20]} 24. Nf3 {[%clk 0:01:00]}  Nf7 {[%clk 0:00:19]} 25. Nd4 {[%clk 0:00:59]}  Nd6 {[%clk 0:00:17]} 26. Re7 {[%clk 0:00:37]}  Bxe7 {[%clk 0:00:03]} 27. Rxe7 {[%clk 0:00:38]}  Nxf5 {[%clk 0:00:02]} 28. Rxd7 {[%clk 0:00:38]} 1-0


[Site "https://www.chess.com"]

[Event "Titled Tuesday Blitz February 22 Early 2022"]
[White "Vovk, Orest"]
[Black "Mirzanurov, Bulat"]
[WhiteFideId "14113490"]
[BlackFideId "4184521"]
[WhiteElo "2203"]
[BlackElo "2116"]
[Result "1-0"]
[Round "01"]
[TimeControl "180+1"]
[Date "2022.02.22"]
[WhiteClock "0:00:27"]
[BlackClock "0:00:02"]

1. g4 {[%clk 0:02:58]}  d5 {[%clk 0:02:57]} 2. h3 {[%clk 0:02:58]}  c6 {[%clk 0:02:53]} 3. Bg2 {[%clk 0:02:57]}  e5 {[%clk 0:02:52]} 4. d4 {[%clk 0:02:57]}  e4 {[%clk 0:02:44]} 5. c4 {[%clk 0:02:56]}  h6 {[%clk 0:02:26]} 6. Nc3 {[%clk 0:02:56]}  Nf6 {[%clk 0:02:24]} 7. Qb3 {[%clk 0:02:55]}  Bd6 {[%clk 0:02:15]} 8. g5 {[%clk 0:02:42]}  hxg5 {[%clk 0:02:06]} 9. Bxg5 {[%clk 0:02:42]}  Be6 {[%clk 0:01:58]} 10. c5 {[%clk 0:02:38]}  Be7 {[%clk 0:01:54]} 11. Qxb7 {[%clk 0:02:38]}  Nbd7 {[%clk 0:01:53]} 12. Qxc6 {[%clk 0:02:34]}  Rb8 {[%clk 0:01:51]} 13. b3 {[%clk 0:02:13]}  Qa5 {[%clk 0:01:28]} 14. Bd2 {[%clk 0:02:10]}  Qb4 {[%clk 0:00:49]} 15. e3 {[%clk 0:01:37]}  Qa3 {[%clk 0:00:29]} 16. Qa4 {[%clk 0:01:34]}  Qxa4 {[%clk 0:00:23]} 17. Nxa4 {[%clk 0:01:33]}  O-O {[%clk 0:00:19]} 18. Ne2 {[%clk 0:01:31]}  Rfc8 {[%clk 0:00:17]} 19. Nf4 {[%clk 0:01:30]}  g5 {[%clk 0:00:16]} 20. Nxe6 {[%clk 0:01:30]}  fxe6 {[%clk 0:00:16]} 21. h4 {[%clk 0:01:30]}  gxh4 {[%clk 0:00:15]} 22. Bh3 {[%clk 0:01:27]}  Kf7 {[%clk 0:00:15]} 23. Ke2 {[%clk 0:01:26]}  Rc6 {[%clk 0:00:14]} 24. Rag1 {[%clk 0:01:16]}  e5 {[%clk 0:00:14]} 25. Bf5 {[%clk 0:01:10]}  exd4 {[%clk 0:00:13]} 26. exd4 {[%clk 0:01:11]}  Rg8 {[%clk 0:00:06]} 27. Rxg8 {[%clk 0:01:08]}  Kxg8 {[%clk 0:00:04]} 28. Rxh4 {[%clk 0:01:06]}  Bxc5 {[%clk 0:00:03]} 29. dxc5 {[%clk 0:01:02]}  Nxc5 {[%clk 0:00:04]} 30. Nxc5 {[%clk 0:00:59]}  Rxc5 {[%clk 0:00:05]} 31. Be6+ {[%clk 0:00:58]}  Kg7 {[%clk 0:00:05]} 32. Bh6+ {[%clk 0:00:57]}  Kg6 {[%clk 0:00:05]} 33. Be3 {[%clk 0:00:51]}  Rc2+ {[%clk 0:00:05]} 34. Kd1 {[%clk 0:00:51]}  Rxa2 {[%clk 0:00:05]} 35. Rh6+ {[%clk 0:00:47]}  Kg7 {[%clk 0:00:04]} 36. Bf5 {[%clk 0:00:47]}  d4 {[%clk 0:00:03]} 37. Rg6+ {[%clk 0:00:46]}  Kf7 {[%clk 0:00:03]} 38. Bxd4 {[%clk 0:00:44]}  Nd5 {[%clk 0:00:02]} 39. Rg7+ {[%clk 0:00:43]}  Ke8 {[%clk 0:00:02]} 40. Bxe4 {[%clk 0:00:32]}  Nb4 {[%clk 0:00:02]} 41. Rxa7 {[%clk 0:00:28]}  Ra1+ {[%clk 0:00:01]} 42. Rxa1 {[%clk 0:00:27]}  Nd3 {[%clk 0:00:02]} 1-0


[Site "https://www.chess.com"]

[Event "Titled Tuesday Blitz February 22 Early 2022"]
[White "Winkels, Marcel"]
[Black "Vusatiuk, Vladimir"]
[WhiteFideId "1003887"]
[BlackFideId "14118610"]
[WhiteElo "1900"]
[BlackElo "2157"]
[Result "0-1"]
[Round "01"]
[TimeControl "180+1"]
[Date "2022.02.22"]
[WhiteClock "0:00:40"]
[BlackClock "0:00:30"]

1. e4 {[%clk 0:02:55]}  c5 {[%clk 0:02:59]} 2. Nf3 {[%clk 0:02:54]}  d6 {[%clk 0:03:00]} 3. g3 {[%clk 0:02:53]}  Nf6 {[%clk 0:02:59]} 4. d3 {[%clk 0:02:52]}  g6 {[%clk 0:02:59]} 5. Bg2 {[%clk 0:02:52]}  Bg7 {[%clk 0:03:00]} 6. O-O {[%clk 0:02:52]}  O-O {[%clk 0:03:00]} 7. c3 {[%clk 0:02:53]}  Nc6 {[%clk 0:02:59]} 8. Be3 {[%clk 0:02:48]}  e5 {[%clk 0:02:51]} 9. Qc1 {[%clk 0:02:42]}  Bd7 {[%clk 0:02:43]} 10. Bh6 {[%clk 0:02:38]}  b5 {[%clk 0:02:42]} 11. Bxg7 {[%clk 0:02:34]}  Kxg7 {[%clk 0:02:43]} 12. Na3 {[%clk 0:02:32]}  Rb8 {[%clk 0:02:40]} 13. Nc2 {[%clk 0:02:31]}  a5 {[%clk 0:02:36]} 14. a3 {[%clk 0:02:24]}  b4 {[%clk 0:02:31]} 15. axb4 {[%clk 0:02:23]}  axb4 {[%clk 0:02:32]} 16. Rd1 {[%clk 0:02:08]}  Qb6 {[%clk 0:02:27]} 17. h4 {[%clk 0:01:59]}  h6 {[%clk 0:02:26]} 18. h5 {[%clk 0:01:56]}  bxc3 {[%clk 0:01:54]} 19. bxc3 {[%clk 0:01:53]}  c4 {[%clk 0:01:54]} 20. hxg6 {[%clk 0:01:45]}  fxg6 {[%clk 0:01:48]} 21. d4 {[%clk 0:01:33]}  Bg4 {[%clk 0:01:18]} 22. d5 {[%clk 0:01:21]}  Na5 {[%clk 0:01:13]} 23. Rb1 {[%clk 0:01:01]}  Nb3 {[%clk 0:01:10]} 24. Qe3 {[%clk 0:01:00]}  Qxe3 {[%clk 0:01:05]} 25. Nxe3 {[%clk 0:00:59]}  Nxe4 {[%clk 0:00:55]} 26. Nxe5 {[%clk 0:00:50]}  Bxd1 {[%clk 0:00:51]} 27. Nd7 {[%clk 0:00:49]}  Nxc3 {[%clk 0:00:46]} 28. Nxf8 {[%clk 0:00:46]}  Kxf8 {[%clk 0:00:39]} 29. Rxd1 {[%clk 0:00:41]}  Nxd1 {[%clk 0:00:39]} 30. Nxd1 {[%clk 0:00:42]}  Nd4 {[%clk 0:00:36]} 31. Nc3 {[%clk 0:00:41]}  Rb3 {[%clk 0:00:32]} 32. Ne4 {[%clk 0:00:40]}  c3 {[%clk 0:00:30]} 0-1


[Site "https://www.chess.com"]

[Event "Titled Tuesday Blitz February 22 Early 2022"]
[White "Zanette, Edgard Vinicius"]
[Black "Jakubowski, Krzysztof"]
[WhiteFideId "2109263"]
[BlackFideId "1112848"]
[WhiteElo "2182"]
[BlackElo "2365"]
[Result "0-1"]
[Round "01"]
[TimeControl "180+1"]
[Date "2022.02.22"]
[WhiteClock "0:00:08"]
[BlackClock "0:00:05"]

1. e4 {[%clk 0:03:00]}  c5 {[%clk 0:02:58]} 2. Nf3 {[%clk 0:02:59]}  e6 {[%clk 0:02:58]} 3. c3 {[%clk 0:02:56]}  Nf6 {[%clk 0:02:54]} 4. e5 {[%clk 0:02:55]}  Nd5 {[%clk 0:02:54]} 5. d4 {[%clk 0:02:55]}  cxd4 {[%clk 0:02:51]} 6. cxd4 {[%clk 0:02:56]}  b6 {[%clk 0:02:48]} 7. Bc4 {[%clk 0:02:50]}  Bb7 {[%clk 0:02:46]} 8. Nc3 {[%clk 0:02:50]}  Nxc3 {[%clk 0:02:44]} 9. bxc3 {[%clk 0:02:51]}  Qc7 {[%clk 0:02:44]} 10. Qd3 {[%clk 0:02:26]}  Nc6 {[%clk 0:02:27]} 11. Bd2 {[%clk 0:02:12]}  Rc8 {[%clk 0:02:21]} 12. Bb3 {[%clk 0:02:09]}  Na5 {[%clk 0:02:19]} 13. Bc2 {[%clk 0:01:52]}  Nc4 {[%clk 0:01:52]} 14. Bc1 {[%clk 0:01:18]}  Ba3 {[%clk 0:01:31]} 15. O-O {[%clk 0:01:11]}  Nb2 {[%clk 0:01:25]} 16. Qe2 {[%clk 0:00:29]}  Qxc3 {[%clk 0:01:21]} 17. Be4 {[%clk 0:00:27]}  Bxe4 {[%clk 0:01:11]} 18. Qxe4 {[%clk 0:00:28]}  h6 {[%clk 0:00:45]} 19. h3 {[%clk 0:00:25]}  O-O {[%clk 0:00:41]} 20. Qg4 {[%clk 0:00:22]}  Kh8 {[%clk 0:00:38]} 21. Qh4 {[%clk 0:00:21]}  Kh7 {[%clk 0:00:27]} 22. Ng5+ {[%clk 0:00:21]}  Kg8 {[%clk 0:00:26]} 23. Nf3 {[%clk 0:00:20]}  Qd3 {[%clk 0:00:17]} 24. Bxh6 {[%clk 0:00:17]}  gxh6 {[%clk 0:00:17]} 25. Qxh6 {[%clk 0:00:17]}  Nc4 {[%clk 0:00:15]} 26. Rad1 {[%clk 0:00:13]}  Qg6 {[%clk 0:00:14]} 27. Qh4 {[%clk 0:00:13]}  Kg7 {[%clk 0:00:14]} 28. Rd3 {[%clk 0:00:12]}  Rh8 {[%clk 0:00:14]} 29. Qf4 {[%clk 0:00:11]}  Be7 {[%clk 0:00:14]} 30. Rc1 {[%clk 0:00:10]}  b5 {[%clk 0:00:13]} 31. Rdc3 {[%clk 0:00:10]}  Kf8 {[%clk 0:00:12]} 32. a4 {[%clk 0:00:08]}  a6 {[%clk 0:00:11]} 33. axb5 {[%clk 0:00:09]}  axb5 {[%clk 0:00:12]} 34. Rb3 {[%clk 0:00:09]}  Rg8 {[%clk 0:00:12]} 35. g4 {[%clk 0:00:09]}  Rh8 {[%clk 0:00:11]} 36. Kg2 {[%clk 0:00:08]}  b4 {[%clk 0:00:08]} 37. Rc2 {[%clk 0:00:07]}  Nb6 {[%clk 0:00:08]} 38. Rxc8+ {[%clk 0:00:07]}  Nxc8 {[%clk 0:00:09]} 39. Rb2 {[%clk 0:00:07]}  Kg7 {[%clk 0:00:08]} 40. d5 {[%clk 0:00:07]}  exd5 {[%clk 0:00:08]} 41. Nd4 {[%clk 0:00:08]}  Kf8 {[%clk 0:00:07]} 42. Nf5 {[%clk 0:00:08]}  Qc6 {[%clk 0:00:06]} 43. Rc2 {[%clk 0:00:09]}  Qxc2 {[%clk 0:00:05]} 44. e6 {[%clk 0:00:08]}  Qe4+ {[%clk 0:00:05]} 45. Qxe4 {[%clk 0:00:08]}  dxe4 {[%clk 0:00:06]} 46. exd7 {[%clk 0:00:08]}  Nb6 {[%clk 0:00:05]} 47. Nd4 {[%clk 0:00:08]}  Nxd7 {[%clk 0:00:05]} 48. Nc6 {[%clk 0:00:08]} 0-1


[Site "https://www.chess.com"]

[Event "Titled Tuesday Blitz February 22 Early 2022"]
[White "Zavgorodniy, Sergiy"]
[Black "Grischuk, Alexander"]
[WhiteFideId "14110148"]
[BlackFideId "4126025"]
[WhiteElo "2420"]
[BlackElo "2762"]
[Result "0-1"]
[Round "01"]
[TimeControl "180+1"]
[Date "2022.02.22"]
[WhiteClock "0:00:02"]
[BlackClock "0:00:28"]

1. e4 {[%clk 0:03:00]}  d5 {[%clk 0:02:59]} 2. exd5 {[%clk 0:03:00]}  Qxd5 {[%clk 0:03:00]} 3. Nc3 {[%clk 0:03:00]}  Qa5 {[%clk 0:03:00]} 4. g3 {[%clk 0:03:00]}  Nf6 {[%clk 0:03:00]} 5. Bg2 {[%clk 0:03:00]}  c6 {[%clk 0:03:00]} 6. Nge2 {[%clk 0:03:00]}  e5 {[%clk 0:03:00]} 7. O-O {[%clk 0:02:59]}  Be7 {[%clk 0:02:57]} 8. d3 {[%clk 0:02:55]}  O-O {[%clk 0:02:57]} 9. h3 {[%clk 0:02:50]}  Rd8 {[%clk 0:02:48]} 10. Bd2 {[%clk 0:02:48]}  Qc7 {[%clk 0:02:47]} 11. Rb1 {[%clk 0:02:44]}  Na6 {[%clk 0:02:43]} 12. a3 {[%clk 0:02:39]}  Nc5 {[%clk 0:02:41]} 13. b4 {[%clk 0:02:38]}  Ne6 {[%clk 0:02:42]} 14. Qc1 {[%clk 0:02:32]}  b6 {[%clk 0:02:26]} 15. Re1 {[%clk 0:02:11]}  Bb7 {[%clk 0:02:25]} 16. Bg5 {[%clk 0:01:53]}  Nxg5 {[%clk 0:02:12]} 17. Qxg5 {[%clk 0:01:52]}  h6 {[%clk 0:02:11]} 18. Qe3 {[%clk 0:01:47]}  Nd5 {[%clk 0:02:09]} 19. Nxd5 {[%clk 0:01:43]}  cxd5 {[%clk 0:02:09]} 20. c4 {[%clk 0:01:43]}  Bg5 {[%clk 0:02:03]} 21. Qf3 {[%clk 0:01:24]}  e4 {[%clk 0:02:02]} 22. dxe4 {[%clk 0:01:19]}  dxe4 {[%clk 0:02:03]} 23. Qb3 {[%clk 0:01:11]}  Rd3 {[%clk 0:02:00]} 24. Qc2 {[%clk 0:00:55]}  Rd2 {[%clk 0:01:54]} 25. Qb3 {[%clk 0:00:51]}  Rad8 {[%clk 0:01:51]} 26. h4 {[%clk 0:00:46]}  R2d3 {[%clk 0:01:19]} 27. Qa4 {[%clk 0:00:41]}  Bd2 {[%clk 0:01:18]} 28. Rf1 {[%clk 0:00:30]}  Bc6 {[%clk 0:01:14]} 29. Qc2 {[%clk 0:00:24]}  e3 {[%clk 0:01:07]} 30. Rb3 {[%clk 0:00:16]}  Ba4 {[%clk 0:00:37]} 31. Qxd3 {[%clk 0:00:14]}  Rxd3 {[%clk 0:00:37]} 32. Rxd3 {[%clk 0:00:15]}  Qxc4 {[%clk 0:00:37]} 33. Rd8+ {[%clk 0:00:13]}  Kh7 {[%clk 0:00:37]} 34. Nf4 {[%clk 0:00:10]}  exf2+ {[%clk 0:00:35]} 35. Rxf2 {[%clk 0:00:04]}  Be3 {[%clk 0:00:35]} 36. Bf3 {[%clk 0:00:02]}  Bc6 {[%clk 0:00:28]} 0-1


[Site "https://www.chess.com"]